fUSD/lending_fUSD_20260621
["ID","MTS","AMOUNT","RATE_DAILY","PERIOD"]
[425862131,1782007866000,-1282.23,0.00029863,2]
[425862130,1782007866000,-500.0,0.00029863,2]
[425862125,1782007866000,-172.722659,0.00029863,7]
[425862126,1782007866000,-500.0,0.00029863,2]
[425862123,1782007866000,-2424.19,0.00029863,2]
[425862122,1782007866000,-151.0,0.00029863,7]
[425862127,1782007866000,-500.0,0.00029863,2]
[425862133,1782007866000,-500.0,0.00029863,2]
[425862128,1782007866000,-500.0,0.00029863,2]
[425862144,1782007866000,-500.0,0.00029863,2]
[425862135,1782007866000,-910.52,0.00029863,2]
[425862143,1782007866000,-500.0,0.00029863,2]
[425862145,1782007866000,-500.0,0.00029863,2]
[425862134,1782007866000,-500.0,0.00029863,2]
[425862137,1782007866000,-500.0,0.00029863,2]
[425862166,1782007866000,-500.0,0.00029863,2]
[425862162,1782007866000,-537.47,0.00029863,2]
[425862172,1782007866000,-512.69393306,0.00029863,2]
[425862207,1782007866000,-500.0,0.00029863,2]
[425862209,1782007866000,-500.0,0.00029863,2]
[425862202,1782007866000,-607.9,0.00029863,2]
[425862200,1782007866000,-500.0,0.00029863,2]
[425862208,1782007866000,-889.79,0.00029863,2]
[425862201,1782007866000,-500.0,0.00029863,2]
[425862203,1782007866000,-1225.01,0.00029863,2]
[425862206,1782007866000,-897.23,0.00029863,2]
[425862205,1782007866000,-721.72,0.00029863,2]
[425862204,1782007866000,-547.52,0.00029863,2]
[425862210,1782007866000,-500.0,0.00029863,2]
[425862199,1782007866000,-500.0,0.00029863,2]
[425862215,1782007866000,-434.69147725,0.00029863,2]
[425862217,1782007866000,-500.0,0.00029863,2]
[425862211,1782007866000,-500.0,0.00029863,2]
[425862214,1782007866000,-803.3,0.00029863,2]
[425862216,1782007866000,-500.0,0.00029863,2]
[425862219,1782007866000,-500.0,0.00029863,2]
[425862218,1782007866000,-500.0,0.00029863,2]
[425862220,1782007866000,-500.0,0.00029863,2]
[425862222,1782007866000,-500.0,0.00029863,2]
[425862221,1782007866000,-500.0,0.00029863,2]
[425862223,1782007866000,-539.93,0.00029863,2]
[425862169,1782007866000,-750.88,0.00029863,2]
[425862213,1782007866000,-500.0,0.00029863,2]
[425862197,1782007866000,-539.98781465,0.00029863,2]
[425862212,1782007866000,-500.0,0.00029863,2]
[425862193,1782007866000,-500.0,0.00029863,2]
[425862171,1782007866000,-2858.65,0.00029863,2]
[425862194,1782007866000,-500.0,0.00029863,2]
[425862173,1782007866000,-500.0,0.00029863,2]
[425862175,1782007866000,-849.69,0.00029863,2]
[425862177,1782007866000,-500.0,0.00029863,2]
[425862174,1782007866000,-500.0,0.00029863,2]
[425862176,1782007866000,-500.0,0.00029863,2]
[425862170,1782007866000,-775.85,0.00029863,2]
[425862178,1782007866000,-4229.39,0.00029863,2]
[425862180,1782007866000,-779.82,0.00029863,2]
[425862182,1782007866000,-728.08,0.00029863,2]
[425862181,1782007866000,-500.0,0.00029863,2]
[425862184,1782007866000,-500.0,0.00029863,2]
[425862179,1782007866000,-500.0,0.00029863,2]
[425862185,1782007866000,-662.97,0.00029863,2]
[425862198,1782007866000,-943.81,0.00029863,2]
[425862195,1782007866000,-500.0,0.00029863,2]
[425862192,1782007866000,-500.0,0.00029863,2]
[425862196,1782007866000,-829.94,0.00029863,2]
[425862191,1782007866000,-1000.0,0.00029863,2]
[425862189,1782007866000,-500.0,0.00029863,2]
[425862188,1782007866000,-500.0,0.00029863,2]
[425862187,1782007866000,-500.0,0.00029863,2]
[425862183,1782007866000,-640.19,0.00029863,2]
[425862186,1782007866000,-1289.65,0.00029863,2]
[425862190,1782007866000,-500.0,0.00029863,2]
[425862261,1782007867000,-6945.58,0.00029863,2]
[425862265,1782007867000,-500.0,0.00029863,2]
[425862268,1782007867000,-500.0,0.00029863,2]
[425862266,1782007867000,-500.0,0.00029863,2]
[425862262,1782007867000,-500.0,0.00029863,2]
[425862259,1782007867000,-500.0,0.00029863,2]
[425862260,1782007867000,-500.0,0.00029863,2]
[425862258,1782007867000,-500.0,0.00029863,2]
[425862254,1782007867000,-773.34,0.00029863,2]
[425862256,1782007867000,-500.0,0.00029863,2]
[425862267,1782007867000,-500.0,0.00029863,2]
[425862257,1782007867000,-500.0,0.00029863,2]
[425862263,1782007867000,-1104.22,0.00029863,2]
[425862279,1782007867000,-735.36,0.00029863,2]
[425862270,1782007867000,-606.91552918,0.00029863,2]
[425862280,1782007867000,-8258.44,0.00029863,2]
[425862269,1782007867000,-899.39,0.00029863,2]
[425862273,1782007867000,-500.0,0.00029863,2]
[425862272,1782007867000,-1741.3,0.00029863,2]
[425862271,1782007867000,-7585.84,0.00029863,2]
[425862275,1782007867000,-500.0,0.00029863,2]
[425862276,1782007867000,-500.0,0.00029863,2]
[425862274,1782007867000,-500.0,0.00029863,2]
[425862278,1782007867000,-500.0,0.00029863,2]
[425862277,1782007867000,-500.0,0.00029863,2]
[425862249,1782007867000,-500.0,0.00029863,2]
[425862264,1782007867000,-500.0,0.00029863,2]
[425862246,1782007867000,-558.31,0.00029863,2]
[425862232,1782007867000,-500.0,0.00029863,2]
[425862251,1782007867000,-500.0,0.00029863,2]
[425862281,1782007867000,-500.0,0.00029863,2]
[425862230,1782007867000,-689.95,0.00029863,2]
[425862231,1782007867000,-500.0,0.00029863,2]
[425862224,1782007867000,-2586.74,0.00029863,2]
[425862225,1782007867000,-500.0,0.00029863,2]
[425862228,1782007867000,-500.0,0.00029863,2]
[425862226,1782007867000,-500.0,0.00029863,2]
[425862229,1782007867000,-500.0,0.00029863,2]
[425862227,1782007867000,-500.0,0.00029863,2]
[425862235,1782007867000,-500.0,0.00029863,2]
[425862233,1782007867000,-500.0,0.00029863,2]
[425862234,1782007867000,-500.0,0.00029863,2]
[425862242,1782007867000,-637.09,0.00029863,2]
[425862236,1782007867000,-500.0,0.00029863,2]
[425862237,1782007867000,-324.97539242,0.00029863,2]
[425862241,1782007867000,-666.55,0.00029863,2]
[425862239,1782007867000,-791.83,0.00029863,2]
[425862238,1782007867000,-500.0,0.00029863,2]
[425862240,1782007867000,-500.0,0.00029863,2]
[425862243,1782007867000,-500.0,0.00029863,2]
[425862244,1782007867000,-500.0,0.00029863,2]
[425862245,1782007867000,-500.0,0.00029863,2]
[425862255,1782007867000,-600.79,0.00029863,2]
[425862247,1782007867000,-500.0,0.00029863,2]
[425862252,1782007867000,-500.0,0.00029863,2]
[425862248,1782007867000,-500.0,0.00029863,2]
[425862253,1782007867000,-514.73138362,0.00029863,2]
[425862250,1782007867000,-2137.72,0.00029863,2]
[425862288,1782007867000,-500.0,0.00029863,2]
[425862338,1782007867000,-500.0,0.00029863,2]
[425862289,1782007867000,-500.0,0.00029863,2]
[425862316,1782007867000,-500.0,0.00029863,2]
[425862318,1782007867000,-500.0,0.00029863,2]
[425862317,1782007867000,-500.0,0.00029863,2]
[425862320,1782007867000,-1002.23,0.00029863,2]
[425862319,1782007867000,-500.0,0.00029863,2]
[425862321,1782007867000,-500.0,0.00029863,2]
[425862323,1782007867000,-500.0,0.00029863,2]
[425862322,1782007867000,-983.14,0.00029863,2]
[425862327,1782007867000,-500.0,0.00029863,2]
[425862324,1782007867000,-919.53,0.00029863,2]
[425862326,1782007867000,-528.2554322,0.00029863,2]
[425862325,1782007867000,-500.0,0.00029863,2]
[425862311,1782007867000,-500.0,0.00029863,2]
[425862328,1782007867000,-500.0,0.00029863,2]
[425862337,1782007867000,-500.0,0.00029863,2]
[425862335,1782007867000,-612.17,0.00029863,2]
[425862333,1782007867000,-355.25932634,0.00029863,2]
[425862331,1782007867000,-947.1,0.00029863,2]
[425862340,1782007867000,-643.77,0.00029863,2]
[425862339,1782007867000,-500.0,0.00029863,2]
[425862334,1782007867000,-666.61,0.00029863,2]
[425862336,1782007867000,-500.0,0.00029863,2]
[425862332,1782007867000,-548.82,0.00029863,2]
[425862341,1782007867000,-618.46,0.00029863,2]
[425862342,1782007867000,-732.98,0.00029863,2]
[425862286,1782007867000,-500.0,0.00029863,2]
[425862330,1782007867000,-738.72,0.00029863,2]
[425862308,1782007867000,-500.0,0.00029863,2]
[425862329,1782007867000,-500.0,0.00029863,2]
[425862306,1782007867000,-1494.86,0.00029863,2]
[425862313,1782007867000,-835.77,0.00029863,2]
[425862287,1782007867000,-1026.93,0.00029863,2]
[425862282,1782007867000,-2459.61,0.00029863,2]
[425862292,1782007867000,-500.0,0.00029863,2]
[425862290,1782007867000,-577.18,0.00029863,2]
[425862283,1782007867000,-500.0,0.00029863,2]
[425862293,1782007867000,-601.15,0.00029863,2]
[425862284,1782007867000,-500.0,0.00029863,2]
[425862285,1782007867000,-500.0,0.00029863,2]
[425862295,1782007867000,-500.0,0.00029863,2]
[425862296,1782007867000,-3993.07,0.00029863,2]
[425862294,1782007867000,-500.0,0.00029863,2]
[425862302,1782007867000,-500.0,0.00029863,2]
[425862291,1782007867000,-500.0,0.00029863,2]
[425862300,1782007867000,-1798.91,0.00029863,2]
[425862314,1782007867000,-768.76,0.00029863,2]
[425862297,1782007867000,-4860.74,0.00029863,2]
[425862312,1782007867000,-682.93,0.00029863,2]
[425862307,1782007867000,-500.0,0.00029863,2]
[425862315,1782007867000,-500.0,0.00029863,2]
[425862310,1782007867000,-500.0,0.00029863,2]
[425862309,1782007867000,-500.0,0.00029863,2]
[425862304,1782007867000,-983.37,0.00029863,2]
[425862301,1782007867000,-500.0,0.00029863,2]
[425862303,1782007867000,-1824.7,0.00029863,2]
[425862299,1782007867000,-934.56,0.00029863,2]
[425862298,1782007867000,-1044.77,0.00029863,2]
[425862305,1782007867000,-550.83217389,0.00029863,2]
[425862356,1782007868000,-500.0,0.00029863,2]
[425862370,1782007868000,-1200.88,0.00029863,2]
[425862362,1782007868000,-500.0,0.00029863,2]
[425862377,1782007868000,-500.0,0.00029863,2]
[425862367,1782007868000,-508.92096588,0.00029863,2]
[425862366,1782007868000,-500.0,0.00029863,2]
[425862379,1782007868000,-639.72,0.00029863,2]
[425862368,1782007868000,-500.0,0.00029863,2]
[425862374,1782007868000,-715.45,0.00029863,2]
[425862369,1782007868000,-500.0,0.00029863,2]
[425862372,1782007868000,-500.0,0.00029863,2]
[425862371,1782007868000,-500.0,0.00029863,2]
[425862375,1782007868000,-500.0,0.00029863,2]
[425862376,1782007868000,-500.0,0.00029863,2]
[425862373,1782007868000,-644.74,0.00029863,2]
[425862360,1782007868000,-500.0,0.00029863,2]
[425862380,1782007868000,-500.0,0.00029863,2]
[425862378,1782007868000,-500.0,0.00029863,2]
[425862364,1782007868000,-1072.82,0.00029863,2]
[425862345,1782007868000,-500.0,0.00029863,2]
[425862358,1782007868000,-5628.49,0.00029863,2]
[425862386,1782007868000,-500.0,0.00029863,2]
[425862352,1782007868000,-500.0,0.00029863,2]
[425862350,1782007868000,-1191.6,0.00029863,2]
[425862349,1782007868000,-649.84,0.00029863,2]
[425862343,1782007868000,-500.0,0.00029863,2]
[425862351,1782007868000,-7152.85,0.00029863,2]
[425862344,1782007868000,-564.34087094,0.00029863,2]
[425862346,1782007868000,-500.0,0.00029863,2]
[425862347,1782007868000,-545.89,0.00029863,2]
[425862348,1782007868000,-500.0,0.00029863,2]
[425862353,1782007868000,-777.4,0.00029863,2]
[425862355,1782007868000,-500.0,0.00029863,2]
[425862361,1782007868000,-631.88,0.00029863,2]
[425862363,1782007868000,-500.0,0.00029863,2]
[425862357,1782007868000,-500.0,0.00029863,2]
[425862365,1782007868000,-500.0,0.00029863,2]
[425862359,1782007868000,-664.14,0.00029863,2]
[425862354,1782007868000,-500.0,0.00029863,2]
[425862383,1782007868000,-500.0,0.00029863,2]
[425862388,1782007868000,-576.34,0.00029863,2]
[425862385,1782007868000,-500.0,0.00029863,2]
[425862409,1782007868000,-500.0,0.00029999,2]
[425862410,1782007868000,-500.0,0.00029999,2]
[425862411,1782007868000,-500.0,0.00029999,2]
[425862412,1782007868000,-5000.0,0.0003,31]
[425862406,1782007868000,-2366.0,0.00029953,3]
[425862413,1782007868000,-158.49687845,0.0003,2]
[425862414,1782007868000,-50978.81666153,0.0003,120]
[425862407,1782007868000,-167.0234,0.00029989,2]
[425862415,1782007868000,-1409.0,0.0003,2]
[425862416,1782007868000,-202.32,0.0003,11]
[425862417,1782007868000,-773.0,0.0003,2]
[425862418,1782007868000,-913.0,0.0003,2]
[425862419,1782007868000,-197129.53340849,0.0003,2]
[425862422,1782007868000,-283.86,0.0003,2]
[425862421,1782007868000,-306.89,0.0003,2]
[425862420,1782007868000,-288.07,0.0003,2]
[425862424,1782007868000,-19589.10592829,0.0003,2]
[425862408,1782007868000,-500.0,0.00029999,2]
[425862404,1782007868000,-3000.0,0.00029918,13]
[425862405,1782007868000,-2425.93010201,0.00029918,13]
[425862396,1782007868000,-500.0,0.00029863,2]
[425862391,1782007868000,-500.0,0.00029863,2]
[425862382,1782007868000,-500.0,0.00029863,2]
[425862384,1782007868000,-500.0,0.00029863,2]
[425862423,1782007868000,-410.27,0.0003,2]
[425862387,1782007868000,-455.0957104,0.00029863,2]
[425862389,1782007868000,-574.04,0.00029863,2]
[425862390,1782007868000,-516.81178869,0.00029863,2]
[425862399,1782007868000,-3313.43,0.00029863,2]
[425862403,1782007868000,-1078.52515517,0.00029918,13]
[425862393,1782007868000,-500.0,0.00029863,2]
[425862394,1782007868000,-3375.54,0.00029863,2]
[425862395,1782007868000,-500.0,0.00029863,2]
[425862401,1782007868000,-1123.45,0.000299,30]
[425862400,1782007868000,-500.0,0.00029863,2]
[425862402,1782007868000,-300.0,0.000299,10]
[425862398,1782007868000,-500.0,0.00029863,2]
[425862397,1782007868000,-500.0,0.00029863,2]
[425862392,1782007868000,-784.17,0.00029863,2]
[425862381,1782007868000,-500.0,0.00029863,2]
[425862428,1782007869000,-5410.89407171,0.0003,2]
[425862426,1782007869000,-500.0,0.00029589,2]
[425862425,1782007869000,-2110.2,0.00027397,10]
[425862427,1782007869000,-500.0,0.00029863,2]
[425862430,1782007869000,-5639.29,0.0003,2]
[425862432,1782007869000,-1194.1137912,0.0003,120]
[425862431,1782007869000,-2500.0,0.0003,2]
[425862433,1782007869000,-644.43,0.0003,2]
[425862434,1782007869000,-22500.0,0.0003,2]
[425862429,1782007869000,-2500.0,0.0003,2]
[425862435,1782007870000,-186.2,0.0003,2]
[425862444,1782007870000,-162.0,0.000301,120]
[425862442,1782007870000,-2008.69522886,0.00030036,2]
[425862443,1782007870000,-1123.45,0.000301,30]
[425862445,1782007870000,-159.73947515,0.00030115,2]
[425862446,1782007870000,-2344.24841927,0.00030125,2]
[425862437,1782007870000,-1209.9596098,0.0003,120]
[425862441,1782007870000,-156.31018524,0.00030036,2]
[425862438,1782007870000,-915.53632805,0.0003,2]
[425862439,1782007870000,-1528.15969,0.0003,2]
[425862436,1782007870000,-2684.33,0.0003,2]
[425862440,1782007870000,-512.0,0.0003,11]
[425862461,1782007871000,-1302.86808883,0.00030135,2]
[425862464,1782007871000,-1302.86808882,0.00030135,2]
[425862474,1782007871000,-416.68919081,0.00030135,2]
[425862475,1782007871000,-500.0,0.00030135,2]
[425862463,1782007871000,-1302.86808883,0.00030135,2]
[425862472,1782007871000,-500.0,0.00030135,2]
[425862466,1782007871000,-1302.86808882,0.00030135,2]
[425862465,1782007871000,-1302.86808882,0.00030135,2]
[425862471,1782007871000,-500.0,0.00030135,2]
[425862462,1782007871000,-1302.86808883,0.00030135,2]
[425862467,1782007871000,-1302.86808882,0.00030135,2]
[425862459,1782007871000,-1302.86808883,0.00030135,2]
[425862454,1782007871000,-360.0,0.0003013,2]
[425862458,1782007871000,-1302.86808883,0.00030135,2]
[425862451,1782007871000,-20155.75158073,0.00030125,2]
[425862457,1782007871000,-558.0,0.0003013,2]
[425862455,1782007871000,-3412.87913307,0.0003013,2]
[425862452,1782007871000,-22216.30741432,0.0003013,7]
[425862453,1782007871000,-376.39,0.0003013,2]
[425862469,1782007871000,-500.0,0.00030135,2]
[425862450,1782007871000,-500.0,0.00029863,2]
[425862449,1782007871000,-371.59904834,0.00029589,2]
[425862448,1782007871000,-128.40095166,0.00029589,2]
[425862447,1782007871000,-502.277226,0.00029589,2]
[425862460,1782007871000,-1302.86808883,0.00030135,2]
[425862468,1782007871000,-500.0,0.00030135,2]
[425862456,1782007871000,-250.93,0.0003013,2]
[425862473,1782007871000,-500.0,0.00030135,2]
[425862499,1782007871000,-162.84041852,0.00030136,2]
[425862500,1782007871000,-289.21881835,0.00030136,2]
[425862498,1782007871000,-337.15958148,0.00030136,2]
[425862496,1782007871000,-321.10391073,0.00030136,2]
[425862495,1782007871000,-500.0,0.00030136,2]
[425862493,1782007871000,-557.88013338,0.00030136,2]
[425862494,1782007871000,-573.46235251,0.00030136,2]
[425862492,1782007871000,-500.0,0.00030136,2]
[425862491,1782007871000,-509.74062453,0.00030136,2]
[425862490,1782007871000,-225.28468397,0.00030136,2]
[425862489,1782007871000,-500.0,0.00030136,2]
[425862487,1782007871000,-500.0,0.00030136,2]
[425862497,1782007871000,-189.73443458,0.00030136,2]
[425862482,1782007871000,-500.0,0.00030136,2]
[425862488,1782007871000,-500.0,0.00030136,2]
[425862476,1782007871000,-500.0,0.00030135,2]
[425862481,1782007871000,-500.0,0.00030136,2]
[425862479,1782007871000,-166.08251047,0.00030135,2]
[425862478,1782007871000,-228.5112686,0.00030135,2]
[425862477,1782007871000,-500.0,0.00030135,2]
[425862470,1782007871000,-500.0,0.00030135,2]
[425862480,1782007871000,-272.89149395,0.00030136,2]
[425862486,1782007871000,-500.0,0.00030136,2]
[425862484,1782007871000,-500.0,0.00030136,2]
[425862483,1782007871000,-300.0,0.00030136,2]
[425862485,1782007871000,-500.0,0.00030136,2]
[425862501,1782007899000,-151.2,0.0001764,2]
[425862503,1782007953000,-500.0,0.00013988,2]
[425862504,1782008006000,-170.65291964,0.00013988,2]
[425862506,1782008059000,-161.00287,0.00013988,2]
[425862507,1782008075000,-84.6707279,0.00013988,2]
[425862508,1782008127000,-500.0,0.00013993,2]
[425862509,1782008181000,-500.0,0.00013993,2]
[425862510,1782008198000,-348.44032527,0.00013993,2]
[425862511,1782008249000,-200.0,0.00013993,2]
[425862512,1782008302000,-198.50368607,0.00013993,2]
[425862513,1782008472000,-500.0,0.00013994,2]
[425862514,1782008490000,-500.0,0.00013995,2]
[425862515,1782008508000,-300.0,0.00013997,2]
[425862516,1782008558000,-224.13349375,0.00013997,2]
[425862517,1782008575000,-29.32129779,0.00013997,2]
[425862518,1782008625000,-190.42122439,0.00013983,2]
[425862519,1782008641000,-91.26109361,0.00013983,2]
[425862520,1782008692000,-177.32,0.00014,2]
[425862521,1782008708000,-4.675995,0.00014,2]
[425862523,1782008760000,-173.56982832,0.00014,2]
[425862524,1782008935000,-76.43017168,0.00014,2]
[425862525,1782008952000,-500.0,0.00014698,2]
[425862526,1782008955000,199.0,0.00023,120]
[425862527,1782008956000,-203.80346063,0.00014698,2]
[425862528,1782008956000,-171.97151853,0.00014698,2]
[425862530,1782008956000,-500.0,0.00014698,2]
[425862529,1782008956000,-500.0,0.00014698,2]
[425862531,1782008956000,-641.61305069,0.00014698,2]
[425862533,1782008956000,-438.39137543,0.00014698,2]
[425862535,1782008956000,-261.2092,0.000147,2]
[425862534,1782008956000,-1004.34761443,0.00014699,2]
[425862536,1782008956000,-168.62980473,0.000147,2]
[425862532,1782008956000,-6.70163245,0.00014698,2]
[425862537,1782008989000,-6660.00839527,0.000147,2]
[425862538,1782009006000,-33950.14451153,0.000147,2]
[425862576,1782009036000,-33950.14451153,0.000147,2]
[425862595,1782009038000,-33950.14451153,0.000147,2]
[425862597,1782009040000,-3267.86783136,0.000147,2]
[425862598,1782009040000,-13989.35320958,0.000147,2]
[425862679,1782009069000,-300.0,0.00016,2]
[425862678,1782009069000,-257.50658726,0.00015734,2]
[425862680,1782009069000,-6260.0937,0.00016411,2]
[425862676,1782009069000,-500.0,0.000154,2]
[425862675,1782009069000,-300.24300457,0.000154,2]
[425862671,1782009069000,-300.0,0.000154,2]
[425862674,1782009069000,-265.15227808,0.000154,2]
[425862672,1782009069000,-207.14622756,0.000154,2]
[425862673,1782009069000,-193.47104777,0.000154,2]
[425862669,1782009069000,-576199.58357664,0.000147,2]
[425862667,1782009069000,-29514.04217174,0.000147,2]
[425862668,1782009069000,-3163.28327022,0.000147,2]
[425862666,1782009069000,-804.70921908,0.000147,2]
[425862665,1782009069000,-874.99999999,0.000147,2]
[425862663,1782009069000,-307.35387966,0.000147,2]
[425862664,1782009069000,-4657.93710714,0.000147,2]
[425862670,1782009069000,-150.0,0.00015,2]
[425862677,1782009069000,-700.0,0.000154,2]
[425862686,1782009069000,-151.0,0.00017958,2]
[425862682,1782009069000,-1500.0,0.00016568,2]
[425862681,1782009069000,-1004.34761443,0.00016464,2]
[425862696,1782009069000,-1959.96363872,0.000189,2]
[425862698,1782009069000,-4622.70111429,0.00019,2]
[425862699,1782009069000,-1959.96363872,0.000191,2]
[425862695,1782009069000,-150.0,0.00018856,2]
[425862693,1782009069000,-168.55929479,0.000188,2]
[425862688,1782009069000,-1004.34761443,0.00018229,2]
[425862694,1782009069000,-4622.70111429,0.000188,2]
[425862697,1782009069000,-168.55929479,0.00019,2]
[425862690,1782009069000,-168.55929479,0.000186,2]
[425862692,1782009069000,-1959.96363872,0.000188,2]
[425862689,1782009069000,-1959.96363872,0.000186,2]
[425862687,1782009069000,-350.0,0.00018,2]
[425862684,1782009069000,-363.9140262,0.00017664,2]
[425862685,1782009069000,-150.0,0.00017958,2]
[425862691,1782009069000,-4622.70111429,0.000186,2]
[425862683,1782009069000,-1555.5,0.00017116,2]
[425862739,1782009070000,-500.0,0.000215,2]
[425862740,1782009070000,-151.0,0.000215,2]
[425862738,1782009070000,-151.0,0.000215,2]
[425862734,1782009070000,-151.0,0.000215,2]
[425862737,1782009070000,-500.0,0.000215,2]
[425862732,1782009070000,-151.0,0.000215,2]
[425862735,1782009070000,-500.0,0.000215,2]
[425862730,1782009070000,-151.0,0.000215,2]
[425862731,1782009070000,-500.0,0.000215,2]
[425862733,1782009070000,-500.0,0.000215,2]
[425862736,1782009070000,-151.0,0.000215,2]
[425862742,1782009070000,-500.0,0.000215,2]
[425862752,1782009070000,-500.0,0.00021644,2]
[425862744,1782009070000,-500.0,0.000215,2]
[425862745,1782009070000,-151.0,0.000215,2]
[425862743,1782009070000,-151.0,0.000215,2]
[425862747,1782009070000,-151.0,0.000215,2]
[425862746,1782009070000,-500.0,0.000215,2]
[425862748,1782009070000,-500.0,0.000215,2]
[425862723,1782009070000,-154.48,0.00021031,2]
[425862754,1782009070000,-395.71558402,0.00021644,2]
[425862753,1782009070000,-500.0,0.00021644,2]
[425862749,1782009070000,-512.18979702,0.000215,2]
[425862750,1782009070000,-3114.4,0.00021604,2]
[425862751,1782009070000,-37497.58,0.00021637,2]
[425862756,1782009070000,-172.53233442,0.00021644,2]
[425862741,1782009070000,-500.0,0.000215,2]
[425862727,1782009070000,-2776.15,0.00021294,2]
[425862721,1782009070000,-179.0,0.00021,2]
[425862729,1782009070000,-151.0,0.000215,2]
[425862755,1782009070000,-150.0,0.00021644,2]
[425862700,1782009070000,-4622.70111429,0.000192,2]
[425862703,1782009070000,-250.0,0.00019424,2]
[425862702,1782009070000,-4622.70111429,0.000194,2]
[425862706,1782009070000,-241.08,0.00019977,2]
[425862704,1782009070000,-4622.70111429,0.000196,2]
[425862705,1782009070000,-4622.70111429,0.000198,2]
[425862701,1782009070000,-1959.96363872,0.000193,2]
[425862708,1782009070000,-4622.70111429,0.0002,2]
[425862709,1782009070000,-773.0,0.0002,2]
[425862707,1782009070000,-1004.34761443,0.00019994,2]
[425862711,1782009070000,-400.0,0.0002,2]
[425862724,1782009070000,-200.0,0.000211,2]
[425862710,1782009070000,-913.0,0.0002,2]
[425862713,1782009070000,-154.0,0.0002,2]
[425862715,1782009070000,-152.0,0.0002,2]
[425862716,1782009070000,-511.0,0.0002,2]
[425862712,1782009070000,-1409.0,0.0002,2]
[425862714,1782009070000,-179.0,0.0002,2]
[425862720,1782009070000,-154.0,0.00021,2]
[425862718,1782009070000,-4622.70111429,0.000204,2]
[425862719,1782009070000,-150.29868404,0.0002058,2]
[425862722,1782009070000,-152.0,0.00021,2]
[425862728,1782009070000,-151.0,0.000215,2]
[425862726,1782009070000,-173.36,0.00021251,2]
[425862725,1782009070000,-95801.82,0.00021125,2]
[425862717,1782009070000,-4622.70111429,0.000202,2]
[425862757,1782009070000,-150.0,0.00021644,2]
[425862804,1782009070000,-154.16,0.00026938,2]
[425862759,1782009070000,-215.00239412,0.00021706,2]
[425862790,1782009070000,-171.01,0.00024151,2]
[425862792,1782009070000,-1000.0,0.00024658,2]
[425862795,1782009070000,-194.55,0.000248,14]
[425862760,1782009070000,-1004.34761443,0.00021759,2]
[425862794,1782009070000,-345.76,0.00024787,2]
[425862797,1782009070000,-183.0,0.00025,2]
[425862800,1782009070000,-511.0,0.00025455,7]
[425862798,1782009070000,-1004.34761443,0.00025289,2]
[425862793,1782009070000,-171.01,0.00024713,2]
[425862799,1782009070000,-154.16,0.00025412,2]
[425862801,1782009070000,-150.0,0.00026093,2]
[425862803,1782009070000,-427.0,0.00026624,10]
[425862791,1782009070000,-154.16,0.00024648,2]
[425862802,1782009070000,-154.16,0.00026175,2]
[425862805,1782009070000,-1004.34761443,0.00027054,2]